[Event "Titled Tuesday Blitz March 15 Late 2022"]
[White "Seul, Georg"]
[Black "Oparin, Grigoriy"]
[WhiteFideId "4601653"]
[BlackFideId "24125890"]
[WhiteElo "2271"]
[BlackElo "2665"]
[Result "0-1"]
[Round "01"]
[TimeControl "180+1"]
[Date "2022.03.15"]
[WhiteClock "0:00:16"]
[BlackClock "0:00:33"]

1. e4 {[%clk 0:03:00]}  c5 {[%clk 0:02:59]} 2. Nf3 {[%clk 0:02:58]}  Nc6 {[%clk 0:03:00]} 3. Bb5 {[%clk 0:02:58]}  e6 {[%clk 0:02:59]} 4. Bxc6 {[%clk 0:02:58]}  bxc6 {[%clk 0:03:00]} 5. d3 {[%clk 0:02:58]}  f6 {[%clk 0:02:59]} 6. O-O {[%clk 0:02:53]}  e5 {[%clk 0:02:58]} 7. Nh4 {[%clk 0:02:53]}  Ne7 {[%clk 0:02:53]} 8. f4 {[%clk 0:02:49]}  d6 {[%clk 0:02:53]} 9. fxe5 {[%clk 0:02:48]}  dxe5 {[%clk 0:02:52]} 10. Na3 {[%clk 0:02:45]}  Be6 {[%clk 0:02:51]} 11. Kh1 {[%clk 0:02:43]}  Ng6 {[%clk 0:02:47]} 12. Nf5 {[%clk 0:02:39]}  Qd7 {[%clk 0:02:44]} 13. Be3 {[%clk 0:02:38]}  Ne7 {[%clk 0:02:28]} 14. Nxe7 {[%clk 0:02:29]}  Bxe7 {[%clk 0:02:29]} 15. Nc4 {[%clk 0:02:27]}  O-O {[%clk 0:02:28]} 16. Qe2 {[%clk 0:02:23]}  Rfd8 {[%clk 0:02:20]} 17. Rad1 {[%clk 0:02:19]}  Rab8 {[%clk 0:02:18]} 18. b3 {[%clk 0:02:18]}  Qe8 {[%clk 0:02:17]} 19. Bc1 {[%clk 0:02:13]}  Bxc4 {[%clk 0:02:15]} 20. dxc4 {[%clk 0:02:11]}  Rd4 {[%clk 0:02:15]} 21. Bb2 {[%clk 0:02:09]}  Rxd1 {[%clk 0:02:15]} 22. Rxd1 {[%clk 0:02:09]}  Rd8 {[%clk 0:02:16]} 23. Bc3 {[%clk 0:02:06]}  Rxd1+ {[%clk 0:02:12]} 24. Qxd1 {[%clk 0:02:06]}  Qc8 {[%clk 0:02:13]} 25. h3 {[%clk 0:02:03]}  g6 {[%clk 0:02:13]} 26. Qg4 {[%clk 0:01:57]}  Qd8 {[%clk 0:02:02]} 27. Qe6+ {[%clk 0:01:54]}  Kf8 {[%clk 0:02:03]} 28. Qg4 {[%clk 0:01:35]}  Kf7 {[%clk 0:02:03]} 29. Qf3 {[%clk 0:01:35]}  Qd6 {[%clk 0:02:00]} 30. Qd3 {[%clk 0:01:34]}  Qe6 {[%clk 0:01:59]} 31. g4 {[%clk 0:01:33]}  Qc8 {[%clk 0:01:53]} 32. Kg2 {[%clk 0:01:33]}  Ke6 {[%clk 0:01:52]} 33. Kf3 {[%clk 0:01:32]}  Qh8 {[%clk 0:01:51]} 34. Ke2 {[%clk 0:01:31]}  h5 {[%clk 0:01:50]} 35. Qf3 {[%clk 0:01:30]}  hxg4 {[%clk 0:01:49]} 36. Qxg4+ {[%clk 0:01:29]}  Kf7 {[%clk 0:01:49]} 37. Kd1 {[%clk 0:01:25]}  Qh7 {[%clk 0:01:43]} 38. Qd7 {[%clk 0:01:20]}  Qh5+ {[%clk 0:01:43]} 39. Kc1 {[%clk 0:01:20]}  Qf3 {[%clk 0:01:42]} 40. Qd3 {[%clk 0:01:15]}  Qg2 {[%clk 0:01:30]} 41. Kb2 {[%clk 0:01:14]}  Ke6 {[%clk 0:01:31]} 42. Ka3 {[%clk 0:01:06]}  Bd6 {[%clk 0:01:26]} 43. Ka4 {[%clk 0:01:04]}  f5 {[%clk 0:01:26]} 44. exf5+ {[%clk 0:01:02]}  gxf5 {[%clk 0:01:27]} 45. Ka5 {[%clk 0:00:54]}  e4 {[%clk 0:01:21]} 46. Qd1 {[%clk 0:00:50]}  Qxh3 {[%clk 0:01:11]} 47. Bb2 {[%clk 0:00:37]}  Qh2 {[%clk 0:00:48]} 48. Ka6 {[%clk 0:00:28]}  Be5 {[%clk 0:00:40]} 49. Ba3 {[%clk 0:00:18]}  Bd4 {[%clk 0:00:37]} 50. c3 {[%clk 0:00:16]}  Qc7 {[%clk 0:00:33]} 0-1


[Site "https://www.chess.com"]

[Event "Titled Tuesday Blitz March 15 Late 2022"]
[White "Suleymanli, Aydin"]
[Black "Aydin, Gulenay"]
[WhiteFideId "13413937"]
[BlackFideId "34557431"]
[WhiteElo "2481"]
[BlackElo "1429"]
[Result "1-0"]
[Round "01"]
[TimeControl "180+1"]
[Date "2022.03.16"]
[WhiteClock "0:00:30"]
[BlackClock "0:00:05"]

1. Nc3 {[%clk 0:02:50]}  d5 {[%clk 0:02:57]} 2. e4 {[%clk 0:02:51]}  d4 {[%clk 0:02:53]} 3. Nce2 {[%clk 0:02:51]}  e5 {[%clk 0:02:53]} 4. Nf3 {[%clk 0:02:51]}  Nc6 {[%clk 0:02:52]} 5. Ng3 {[%clk 0:02:51]}  Bg4 {[%clk 0:02:50]} 6. Bb5 {[%clk 0:02:50]}  Bd6 {[%clk 0:02:39]} 7. h3 {[%clk 0:02:48]}  Bd7 {[%clk 0:02:39]} 8. c3 {[%clk 0:02:44]}  dxc3 {[%clk 0:02:34]} 9. dxc3 {[%clk 0:02:45]}  h6 {[%clk 0:02:31]} 10. Be3 {[%clk 0:02:41]}  a6 {[%clk 0:02:26]} 11. Bc4 {[%clk 0:02:37]}  Nf6 {[%clk 0:02:25]} 12. Nh4 {[%clk 0:02:31]}  Ne7 {[%clk 0:02:09]} 13. Qf3 {[%clk 0:02:26]}  b5 {[%clk 0:01:57]} 14. Bb3 {[%clk 0:02:15]}  Qc8 {[%clk 0:01:50]} 15. O-O {[%clk 0:01:51]}  Be6 {[%clk 0:01:07]} 16. Nhf5 {[%clk 0:01:37]}  Bxf5 {[%clk 0:00:57]} 17. exf5 {[%clk 0:01:38]}  O-O {[%clk 0:00:43]} 18. Bc2 {[%clk 0:01:35]}  c5 {[%clk 0:00:41]} 19. Ne4 {[%clk 0:01:14]}  Nxe4 {[%clk 0:00:25]} 20. Bxe4 {[%clk 0:01:15]}  Ra7 {[%clk 0:00:22]} 21. f6 {[%clk 0:01:12]}  Ng6 {[%clk 0:00:20]} 22. Bf5 {[%clk 0:01:00]}  Qd8 {[%clk 0:00:18]} 23. fxg7 {[%clk 0:00:58]}  Kxg7 {[%clk 0:00:19]} 24. Rad1 {[%clk 0:00:58]}  Qe7 {[%clk 0:00:18]} 25. Qh5 {[%clk 0:00:56]}  Rh8 {[%clk 0:00:18]} 26. Rfe1 {[%clk 0:00:54]}  Raa8 {[%clk 0:00:17]} 27. f4 {[%clk 0:00:49]}  Qc7 {[%clk 0:00:16]} 28. Bxg6 {[%clk 0:00:47]}  fxg6 {[%clk 0:00:16]} 29. Qg4 {[%clk 0:00:47]}  Rae8 {[%clk 0:00:15]} 30. f5 {[%clk 0:00:39]}  g5 {[%clk 0:00:13]} 31. Rd5 {[%clk 0:00:38]}  Kf6 {[%clk 0:00:12]} 32. Red1 {[%clk 0:00:39]}  Rd8 {[%clk 0:00:13]} 33. h4 {[%clk 0:00:38]}  Rhg8 {[%clk 0:00:12]} 34. hxg5+ {[%clk 0:00:37]}  hxg5 {[%clk 0:00:13]} 35. Qh5 {[%clk 0:00:33]}  Be7 {[%clk 0:00:12]} 36. g4 {[%clk 0:00:29]}  Rxd5 {[%clk 0:00:11]} 37. Rxd5 {[%clk 0:00:29]}  Qb7 {[%clk 0:00:06]} 38. Qh6+ {[%clk 0:00:29]}  Kf7 {[%clk 0:00:07]} 39. Qe6+ {[%clk 0:00:29]}  Kf8 {[%clk 0:00:05]} 40. f6 {[%clk 0:00:30]} 1-0


[Site "https://www.chess.com"]

[Event "Titled Tuesday Blitz March 15 Late 2022"]
[White "Svane, Rasmus"]
[Black "Eynullayev, Atilla"]
[WhiteFideId "4657101"]
[BlackFideId "13413570"]
[WhiteElo "2645"]
[BlackElo "1979"]
[Result "1-0"]
[Round "01"]
[TimeControl "180+1"]
[Date "2022.03.15"]
[WhiteClock "0:01:38"]
[BlackClock "0:00:06"]

1. Nf3 {[%clk 0:02:58]}  Nf6 {[%clk 0:02:59]} 2. g3 {[%clk 0:02:58]}  d5 {[%clk 0:03:00]} 3. Bg2 {[%clk 0:02:59]}  e6 {[%clk 0:03:00]} 4. O-O {[%clk 0:02:59]}  Be7 {[%clk 0:03:00]} 5. c4 {[%clk 0:03:00]}  O-O {[%clk 0:03:00]} 6. b3 {[%clk 0:03:00]}  b6 {[%clk 0:03:00]} 7. d4 {[%clk 0:02:59]}  Bb7 {[%clk 0:02:53]} 8. Nc3 {[%clk 0:02:59]}  Nbd7 {[%clk 0:02:51]} 9. Bb2 {[%clk 0:02:59]}  c5 {[%clk 0:02:47]} 10. Ne1 {[%clk 0:02:59]}  Rc8 {[%clk 0:02:40]} 11. cxd5 {[%clk 0:02:58]}  Nxd5 {[%clk 0:02:29]} 12. Nxd5 {[%clk 0:02:58]}  Bxd5 {[%clk 0:02:29]} 13. Bxd5 {[%clk 0:02:57]}  exd5 {[%clk 0:02:29]} 14. dxc5 {[%clk 0:02:53]}  Nxc5 {[%clk 0:02:29]} 15. Ng2 {[%clk 0:02:50]}  Ne6 {[%clk 0:01:34]} 16. Qd3 {[%clk 0:02:49]}  Nc5 {[%clk 0:01:27]} 17. Qf3 {[%clk 0:02:47]}  Ne4 {[%clk 0:01:26]} 18. Rfd1 {[%clk 0:02:34]}  Rc2 {[%clk 0:01:26]} 19. Bd4 {[%clk 0:02:28]}  Qc8 {[%clk 0:01:07]} 20. Ne3 {[%clk 0:02:28]}  Rd2 {[%clk 0:01:07]} 21. Nxd5 {[%clk 0:02:25]}  Qe6 {[%clk 0:00:58]} 22. Nf4 {[%clk 0:02:08]}  Ng5 {[%clk 0:00:34]} 23. Nxe6 {[%clk 0:01:52]}  Nxf3+ {[%clk 0:00:34]} 24. exf3 {[%clk 0:01:53]}  Rxd1+ {[%clk 0:00:34]} 25. Rxd1 {[%clk 0:01:54]}  fxe6 {[%clk 0:00:35]} 26. Re1 {[%clk 0:01:41]}  Kf7 {[%clk 0:00:35]} 27. Rc1 {[%clk 0:01:40]}  Rd8 {[%clk 0:00:35]} 28. Be3 {[%clk 0:01:41]}  Rd7 {[%clk 0:00:34]} 29. Kf1 {[%clk 0:01:41]}  Bf6 {[%clk 0:00:34]} 30. Ke2 {[%clk 0:01:41]}  Ke7 {[%clk 0:00:32]} 31. f4 {[%clk 0:01:42]}  Bb2 {[%clk 0:00:27]} 32. Rc2 {[%clk 0:01:42]}  Ba3 {[%clk 0:00:26]} 33. Kf3 {[%clk 0:01:42]}  Bb4 {[%clk 0:00:25]} 34. Ke4 {[%clk 0:01:42]}  b5 {[%clk 0:00:20]} 35. Rc6 {[%clk 0:01:40]}  a5 {[%clk 0:00:12]} 36. Rb6 {[%clk 0:01:38]}  Rd5 {[%clk 0:00:12]} 37. Rb7+ {[%clk 0:01:38]}  Kf8 {[%clk 0:00:08]} 38. Bd4 {[%clk 0:01:39]}  g6 {[%clk 0:00:06]} 39. Rxh7 {[%clk 0:01:38]} 1-0


[Site "https://www.chess.com"]

[Event "Titled Tuesday Blitz March 15 Late 2022"]
[White "Sztokbant, Bernardo Vainzoff"]
[Black "Bortnyk, Olexandr"]
[WhiteFideId "2115956"]
[BlackFideId "14120828"]
[WhiteElo "2237"]
[BlackElo "2723"]
[Result "0-1"]
[Round "01"]
[TimeControl "180+1"]
[Date "2022.03.15"]
[WhiteClock "0:02:07"]
[BlackClock "0:02:10"]

1. d4 {[%clk 0:02:53]}  d6 {[%clk 0:02:59]} 2. c4 {[%clk 0:02:54]}  e5 {[%clk 0:02:59]} 3. Nf3 {[%clk 0:02:53]}  e4 {[%clk 0:02:58]} 4. Nfd2 {[%clk 0:02:43]}  f5 {[%clk 0:02:58]} 5. Nc3 {[%clk 0:02:42]}  c6 {[%clk 0:02:55]} 6. g3 {[%clk 0:02:34]}  g6 {[%clk 0:02:47]} 7. Bg2 {[%clk 0:02:34]}  Bg7 {[%clk 0:02:45]} 8. Nb3 {[%clk 0:02:31]}  Nf6 {[%clk 0:02:44]} 9. O-O {[%clk 0:02:30]}  O-O {[%clk 0:02:43]} 10. f3 {[%clk 0:02:30]}  d5 {[%clk 0:02:43]} 11. cxd5 {[%clk 0:02:27]}  cxd5 {[%clk 0:02:44]} 12. Bg5 {[%clk 0:02:27]}  Nc6 {[%clk 0:02:39]} 13. Rc1 {[%clk 0:02:26]}  Kh8 {[%clk 0:02:22]} 14. Qd2 {[%clk 0:02:25]}  Be6 {[%clk 0:02:14]} 15. Nc5 {[%clk 0:02:23]}  Bg8 {[%clk 0:02:14]} 16. Nxb7 {[%clk 0:02:07]}  Qb6 {[%clk 0:02:13]} 17. Nc5 {[%clk 0:02:07]}  Nxd4 {[%clk 0:02:10]} 18. Qxd4 {[%clk 0:02:07]}  Ng4 {[%clk 0:02:11]} 19. N3a4 {[%clk 0:02:07]}  Bxd4+ {[%clk 0:02:10]} 0-1


[Site "https://www.chess.com"]

[Event "Titled Tuesday Blitz March 15 Late 2022"]
[White "Taboas Rodriguez, Daniel"]
[Black "Senft, Sean"]
[WhiteFideId "2208466"]
[BlackFideId "2044960"]
[WhiteElo "2429"]
[BlackElo "1881"]
[Result "1/2-1/2"]
[Round "01"]
[TimeControl "180+1"]
[Date "2022.03.16"]
[WhiteClock "0:00:49"]
[BlackClock "0:00:10"]

1. d4 {[%clk 0:02:59]}  d5 {[%clk 0:03:00]} 2. Nf3 {[%clk 0:02:59]}  c6 {[%clk 0:03:01]} 3. c4 {[%clk 0:03:00]}  Nf6 {[%clk 0:03:01]} 4. cxd5 {[%clk 0:03:00]}  cxd5 {[%clk 0:03:00]} 5. Nc3 {[%clk 0:03:01]}  Nc6 {[%clk 0:03:01]} 6. Bf4 {[%clk 0:03:01]}  a6 {[%clk 0:03:02]} 7. Rc1 {[%clk 0:03:01]}  Bf5 {[%clk 0:03:01]} 8. e3 {[%clk 0:03:00]}  e6 {[%clk 0:03:02]} 9. Qb3 {[%clk 0:03:00]}  Ra7 {[%clk 0:03:02]} 10. Be2 {[%clk 0:02:59]}  Bd6 {[%clk 0:03:02]} 11. Bxd6 {[%clk 0:02:59]}  Qxd6 {[%clk 0:03:03]} 12. O-O {[%clk 0:02:59]}  O-O {[%clk 0:03:03]} 13. Na4 {[%clk 0:03:00]}  Nd7 {[%clk 0:03:03]} 14. Nc5 {[%clk 0:03:00]}  Nxc5 {[%clk 0:03:02]} 15. Rxc5 {[%clk 0:03:01]}  b5 {[%clk 0:02:59]} 16. Rfc1 {[%clk 0:02:58]}  Na5 {[%clk 0:02:59]} 17. Qc3 {[%clk 0:02:58]}  Qb6 {[%clk 0:02:51]} 18. b3 {[%clk 0:02:49]}  h6 {[%clk 0:02:47]} 19. Rc7 {[%clk 0:02:48]}  Rxc7 {[%clk 0:02:22]} 20. Qxc7 {[%clk 0:02:49]}  Qxc7 {[%clk 0:02:21]} 21. Rxc7 {[%clk 0:02:50]}  Rb8 {[%clk 0:02:20]} 22. Kf1 {[%clk 0:02:50]}  Rb6 {[%clk 0:02:19]} 23. Ne5 {[%clk 0:02:46]}  f6 {[%clk 0:02:18]} 24. Rc8+ {[%clk 0:02:46]}  Kh7 {[%clk 0:02:17]} 25. Nd7 {[%clk 0:02:44]}  Rc6 {[%clk 0:02:17]} 26. Rxc6 {[%clk 0:02:44]}  Nxc6 {[%clk 0:02:18]} 27. Nc5 {[%clk 0:02:44]}  Nb8 {[%clk 0:02:13]} 28. g4 {[%clk 0:02:44]}  Bb1 {[%clk 0:02:12]} 29. a3 {[%clk 0:02:44]}  e5 {[%clk 0:02:09]} 30. b4 {[%clk 0:02:43]}  exd4 {[%clk 0:02:07]} 31. exd4 {[%clk 0:02:42]}  Kg6 {[%clk 0:01:57]} 32. Bf3 {[%clk 0:02:42]}  Kg5 {[%clk 0:01:50]} 33. h3 {[%clk 0:02:40]}  Nc6 {[%clk 0:01:50]} 34. Bxd5 {[%clk 0:02:38]}  Nxd4 {[%clk 0:01:49]} 35. Bb7 {[%clk 0:02:36]}  Nc2 {[%clk 0:01:46]} 36. Bxa6 {[%clk 0:02:25]}  Nxa3 {[%clk 0:01:45]} 37. Ne6+ {[%clk 0:02:25]}  Kg6 {[%clk 0:01:43]} 38. f4 {[%clk 0:02:21]}  Bd3+ {[%clk 0:01:40]} 39. Kf2 {[%clk 0:02:21]}  Nc2 {[%clk 0:01:41]} 40. f5+ {[%clk 0:02:19]}  Kf7 {[%clk 0:01:40]} 41. Nc5 {[%clk 0:02:08]}  Nxb4 {[%clk 0:01:32]} 42. Nxd3 {[%clk 0:02:07]}  Nxd3+ {[%clk 0:01:32]} 43. Ke3 {[%clk 0:02:08]}  Ne5 {[%clk 0:01:30]} 44. Bxb5 {[%clk 0:02:07]}  Ke7 {[%clk 0:01:31]} 45. Kd4 {[%clk 0:02:04]}  Kd6 {[%clk 0:01:29]} 46. Be2 {[%clk 0:02:03]}  Nc6+ {[%clk 0:01:28]} 47. Ke4 {[%clk 0:02:02]}  Nb4 {[%clk 0:01:24]} 48. Bc4 {[%clk 0:02:02]}  Nc6 {[%clk 0:01:21]} 49. Be2 {[%clk 0:02:01]}  Nd8 {[%clk 0:01:17]} 50. Bc4 {[%clk 0:01:59]}  Nb7 {[%clk 0:01:17]} 51. Be2 {[%clk 0:01:58]}  Kc5 {[%clk 0:01:15]} 52. h4 {[%clk 0:01:53]}  Nd6+ {[%clk 0:01:16]} 53. Kf4 {[%clk 0:01:53]}  Kd4 {[%clk 0:01:16]} 54. g5 {[%clk 0:01:52]}  Nf7 {[%clk 0:01:02]} 55. gxf6 {[%clk 0:01:48]}  gxf6 {[%clk 0:01:02]} 56. Bd1 {[%clk 0:01:44]}  Ne5 {[%clk 0:01:00]} 57. Bb3 {[%clk 0:01:41]}  Kd3 {[%clk 0:00:27]} 58. Ba4 {[%clk 0:01:23]}  Ke2 {[%clk 0:00:26]} 59. h5 {[%clk 0:01:21]}  Kd3 {[%clk 0:00:24]} 60. Bd1 {[%clk 0:01:18]}  Kd4 {[%clk 0:00:25]} 61. Bb3 {[%clk 0:01:16]}  Nd3+ {[%clk 0:00:24]} 62. Kf3 {[%clk 0:01:16]}  Ke5 {[%clk 0:00:23]} 63. Be6 {[%clk 0:01:10]}  Nc5 {[%clk 0:00:21]} 64. Bc8 {[%clk 0:01:10]}  Ne4 {[%clk 0:00:21]} 65. Bd7 {[%clk 0:01:07]}  Nd6 {[%clk 0:00:21]} 66. Kg4 {[%clk 0:01:07]}  Ke4 {[%clk 0:00:21]} 67. Be6 {[%clk 0:01:07]}  Ke3 {[%clk 0:00:21]} 68. Kg3 {[%clk 0:01:05]}  Ne4+ {[%clk 0:00:20]} 69. Kg4 {[%clk 0:01:05]}  Ng5 {[%clk 0:00:20]} 70. Bc8 {[%clk 0:01:05]}  Ke4 {[%clk 0:00:21]} 71. Bd7 {[%clk 0:01:04]}  Ke5 {[%clk 0:00:22]} 72. Bc8 {[%clk 0:01:04]}  Ne4 {[%clk 0:00:22]} 73. Bd7 {[%clk 0:01:00]}  Nf2+ {[%clk 0:00:17]} 74. Kf3 {[%clk 0:01:00]}  Nd3 {[%clk 0:00:16]} 75. Kg4 {[%clk 0:01:00]}  Kd4 {[%clk 0:00:15]} 76. Bc8 {[%clk 0:01:00]}  Ke3 {[%clk 0:00:15]} 77. Be6 {[%clk 0:00:58]}  Nc5 {[%clk 0:00:15]} 78. Bc8 {[%clk 0:00:58]}  Ke4 {[%clk 0:00:16]} 79. Kg3 {[%clk 0:00:56]}  Ke3 {[%clk 0:00:11]} 80. Kg4 {[%clk 0:00:56]}  Ne4 {[%clk 0:00:08]} 81. Be6 {[%clk 0:00:54]}  Ng5 {[%clk 0:00:09]} 82. Bc8 {[%clk 0:00:54]}  Kd4 {[%clk 0:00:09]} 83. Bd7 {[%clk 0:00:54]}  Ke5 {[%clk 0:00:08]} 84. Bc8 {[%clk 0:00:54]}  Nf7 {[%clk 0:00:09]} 85. Bd7 {[%clk 0:00:53]}  Nd6 {[%clk 0:00:08]} 86. Be6 {[%clk 0:00:52]}  Ne8 {[%clk 0:00:08]} 87. Bd7 {[%clk 0:00:52]}  Ng7 {[%clk 0:00:08]} 88. Bc8 {[%clk 0:00:51]}  Ke4 {[%clk 0:00:09]} 89. Bd7 {[%clk 0:00:51]}  Ke5 {[%clk 0:00:09]} 90. Bc8 {[%clk 0:00:51]}  Kd6 {[%clk 0:00:10]} 91. Ba6 {[%clk 0:00:49]}  Kc5 {[%clk 0:00:10]} 92. Bc8 {[%clk 0:00:49]}  Kd5 {[%clk 0:00:10]} 93. Ba6 {[%clk 0:00:49]}  Ke5 {[%clk 0:00:10]} 94. Bc8 {[%clk 0:00:49]} 1/2-1/2


[Site "https://www.chess.com"]

[Event "Titled Tuesday Blitz March 15 Late 2022"]
[White "Tari, Aryan"]
[Black "Morris-Suzuki, Sophie"]
[WhiteFideId "1510045"]
[BlackFideId "30922615"]
[WhiteElo "2567"]
[BlackElo "2500"]
[Result "1-0"]
[Round "01"]
[TimeControl "180+1"]
[Date "2022.03.15"]
[WhiteClock "0:01:31"]
[BlackClock "0:00:34"]

1. a3 {[%clk 0:02:53]}  d5 {[%clk 0:02:59]} 2. Nf3 {[%clk 0:02:51]}  Nc6 {[%clk 0:02:58]} 3. d4 {[%clk 0:02:50]}  Bg4 {[%clk 0:02:56]} 4. Bf4 {[%clk 0:02:46]}  e6 {[%clk 0:02:54]} 5. Nbd2 {[%clk 0:02:43]}  Bd6 {[%clk 0:02:49]} 6. Bg3 {[%clk 0:02:43]}  Nf6 {[%clk 0:02:48]} 7. e3 {[%clk 0:02:42]}  O-O {[%clk 0:02:48]} 8. Bd3 {[%clk 0:02:41]}  Qe7 {[%clk 0:02:46]} 9. Be2 {[%clk 0:02:04]}  Bxg3 {[%clk 0:02:38]} 10. hxg3 {[%clk 0:02:02]}  e5 {[%clk 0:02:38]} 11. c3 {[%clk 0:01:58]}  Ne4 {[%clk 0:02:25]} 12. Nxe4 {[%clk 0:01:47]}  dxe4 {[%clk 0:02:25]} 13. Nd2 {[%clk 0:01:48]}  Bxe2 {[%clk 0:02:16]} 14. Qxe2 {[%clk 0:01:49]}  exd4 {[%clk 0:02:15]} 15. cxd4 {[%clk 0:01:50]}  f5 {[%clk 0:02:01]} 16. O-O {[%clk 0:01:50]}  Qd7 {[%clk 0:01:46]} 17. Rac1 {[%clk 0:01:48]}  Ne7 {[%clk 0:01:46]} 18. Qc4+ {[%clk 0:01:47]}  Nd5 {[%clk 0:01:45]} 19. Qb3 {[%clk 0:01:46]}  c6 {[%clk 0:01:44]} 20. Nc4 {[%clk 0:01:46]}  Kh8 {[%clk 0:01:44]} 21. Ne5 {[%clk 0:01:44]}  Qe8 {[%clk 0:01:41]} 22. Qxb7 {[%clk 0:01:44]}  Rb8 {[%clk 0:01:29]} 23. Qxc6 {[%clk 0:01:36]}  Qxc6 {[%clk 0:01:28]} 24. Rxc6 {[%clk 0:01:36]}  Rxb2 {[%clk 0:01:28]} 25. Rfc1 {[%clk 0:01:34]}  Rbb8 {[%clk 0:01:01]} 26. Nd7 {[%clk 0:01:33]}  Ne7 {[%clk 0:00:46]} 27. R6c5 {[%clk 0:01:31]}  Rfd8 {[%clk 0:00:34]} 28. Nxb8 {[%clk 0:01:31]} 1-0


[Site "https://www.chess.com"]

[Event "Titled Tuesday Blitz March 15 Late 2022"]
[White "Vine, Elzbieta"]
[Black "Adewumi, Tanitoluwa"]
[WhiteFideId "1119320"]
[BlackFideId "30966396"]
[WhiteElo "1821"]
[BlackElo "2562"]
[Result "1-0"]
[Round "01"]
[TimeControl "180+1"]
[Date "2022.03.16"]
[WhiteClock "0:00:11"]
[BlackClock "0:00:03"]

1. e4 {[%clk 0:02:59]}  c6 {[%clk 0:02:29]} 2. d4 {[%clk 0:02:57]}  d5 {[%clk 0:02:29]} 3. exd5 {[%clk 0:02:54]}  cxd5 {[%clk 0:02:29]} 4. Bd3 {[%clk 0:02:54]}  Nc6 {[%clk 0:02:28]} 5. c3 {[%clk 0:02:52]}  Nf6 {[%clk 0:02:26]} 6. h3 {[%clk 0:02:51]}  e5 {[%clk 0:01:58]} 7. dxe5 {[%clk 0:02:25]}  Nxe5 {[%clk 0:01:57]} 8. Bb5+ {[%clk 0:02:08]}  Bd7 {[%clk 0:01:55]} 9. Bxd7+ {[%clk 0:02:07]}  Qxd7 {[%clk 0:01:50]} 10. Nf3 {[%clk 0:01:33]}  Nxf3+ {[%clk 0:01:48]} 11. Qxf3 {[%clk 0:01:32]}  Qe6+ {[%clk 0:01:49]} 12. Be3 {[%clk 0:01:32]}  Bd6 {[%clk 0:01:31]} 13. O-O {[%clk 0:01:14]}  O-O {[%clk 0:01:29]} 14. Nd2 {[%clk 0:01:05]}  Rfe8 {[%clk 0:01:28]} 15. Rfe1 {[%clk 0:00:56]}  Qe5 {[%clk 0:01:19]} 16. Nf1 {[%clk 0:00:53]}  Ne4 {[%clk 0:01:15]} 17. Bd4 {[%clk 0:00:50]}  Qe6 {[%clk 0:00:54]} 18. Rad1 {[%clk 0:00:37]}  b6 {[%clk 0:00:50]} 19. Qh5 {[%clk 0:00:26]}  h6 {[%clk 0:00:47]} 20. Nd2 {[%clk 0:00:19]}  Rad8 {[%clk 0:00:20]} 21. Nxe4 {[%clk 0:00:18]}  dxe4 {[%clk 0:00:21]} 22. f3 {[%clk 0:00:17]}  Bg3 {[%clk 0:00:11]} 23. Rxe4 {[%clk 0:00:15]}  Qxa2 {[%clk 0:00:04]} 24. Rxe8+ {[%clk 0:00:13]}  Rxe8 {[%clk 0:00:03]} 25. Qg4 {[%clk 0:00:12]}  Qa4 {[%clk 0:00:03]} 26. Qxg7# {[%clk 0:00:11]} 1-0


[Site "https://www.chess.com"]

[Event "Titled Tuesday Blitz March 15 Late 2022"]
[White "Vovk, Orest"]
[Black "Quesada Perez, Yuniesky"]
[WhiteFideId "14113490"]
[BlackFideId "3504409"]
[WhiteElo "2203"]
[BlackElo "2622"]
[Result "0-1"]
[Round "01"]
[TimeControl "180+1"]
[Date "2022.03.16"]
[WhiteClock "0:00:02"]
[BlackClock "0:00:36"]

1. g3 {[%clk 0:01:47]}  d5 {[%clk 0:02:55]} 2. Bg2 {[%clk 0:01:47]}  Nf6 {[%clk 0:02:55]} 3. c4 {[%clk 0:01:46]}  c6 {[%clk 0:02:54]} 4. cxd5 {[%clk 0:01:46]}  cxd5 {[%clk 0:02:54]} 5. Nf3 {[%clk 0:01:46]}  Nc6 {[%clk 0:02:54]} 6. O-O {[%clk 0:01:46]}  Bf5 {[%clk 0:02:54]} 7. d3 {[%clk 0:01:46]}  e6 {[%clk 0:02:54]} 8. Nc3 {[%clk 0:01:47]}  h6 {[%clk 0:02:54]} 9. Qb3 {[%clk 0:01:44]}  Qd7 {[%clk 0:02:53]} 10. Bf4 {[%clk 0:01:42]}  Be7 {[%clk 0:02:52]} 11. Ne5 {[%clk 0:01:42]}  Nxe5 {[%clk 0:02:52]} 12. Bxe5 {[%clk 0:01:43]}  O-O {[%clk 0:02:51]} 13. Qb5 {[%clk 0:01:41]}  a6 {[%clk 0:02:30]} 14. Qxd7 {[%clk 0:01:38]}  Nxd7 {[%clk 0:02:31]} 15. Bd4 {[%clk 0:01:34]}  Rfc8 {[%clk 0:02:31]} 16. e4 {[%clk 0:01:22]}  dxe4 {[%clk 0:02:30]} 17. dxe4 {[%clk 0:01:22]}  Bg6 {[%clk 0:02:27]} 18. Rfd1 {[%clk 0:01:16]}  Rc7 {[%clk 0:02:21]} 19. f4 {[%clk 0:01:08]}  Rac8 {[%clk 0:02:02]} 20. Kf2 {[%clk 0:01:06]}  Rc4 {[%clk 0:01:44]} 21. Bxg7 {[%clk 0:00:57]}  Bc5+ {[%clk 0:01:25]} 22. Kf1 {[%clk 0:00:50]}  Kxg7 {[%clk 0:01:18]} 23. Rxd7 {[%clk 0:00:49]}  Rb4 {[%clk 0:01:17]} 24. Nd1 {[%clk 0:00:39]}  Bh5 {[%clk 0:01:09]} 25. b3 {[%clk 0:00:29]}  Rd4 {[%clk 0:01:04]} 26. Rxd4 {[%clk 0:00:23]}  Bxd4 {[%clk 0:01:05]} 27. Rb1 {[%clk 0:00:23]}  Rc2 {[%clk 0:01:05]} 28. e5 {[%clk 0:00:08]}  Bg6 {[%clk 0:00:48]} 29. Bxb7 {[%clk 0:00:02]}  Bd3+ {[%clk 0:00:47]} 30. Ke1 {[%clk 0:00:01]}  Re2+ {[%clk 0:00:47]} 31. Kf1 {[%clk 0:00:02]}  Rxa2+ {[%clk 0:00:36]} 0-1


[Site "https://www.chess.com"]